[Event "Titled Tuesday Blitz April 12 Late 2022"]
[White "Cabarkapa, Novak"]
[Black "Ozdemir, Serhan Berat"]
[WhiteFideId "943746"]
[BlackFideId "6374611"]
[WhiteElo "2669"]
[BlackElo "2471"]
[Result "1-0"]
[Round "03"]
[TimeControl "180+1"]
[Date "2022.04.13"]
[WhiteClock "0:00:11"]
[BlackClock "0:00:06"]

1. d4 {[%clk 0:03:00]}  Nf6 {[%clk 0:02:59]} 2. Nc3 {[%clk 0:03:00]}  d5 {[%clk 0:02:59]} 3. Bf4 {[%clk 0:03:00]}  g6 {[%clk 0:02:59]} 4. e3 {[%clk 0:03:00]}  Bg7 {[%clk 0:03:00]} 5. h4 {[%clk 0:03:00]}  h5 {[%clk 0:03:00]} 6. Nf3 {[%clk 0:03:00]}  O-O {[%clk 0:02:58]} 7. Ne5 {[%clk 0:02:59]}  c5 {[%clk 0:02:58]} 8. Be2 {[%clk 0:02:56]}  Nc6 {[%clk 0:02:59]} 9. g4 {[%clk 0:02:57]}  Nxe5 {[%clk 0:02:52]} 10. Bxe5 {[%clk 0:02:52]}  Nxg4 {[%clk 0:02:46]} 11. Bxg7 {[%clk 0:02:52]}  Kxg7 {[%clk 0:02:47]} 12. dxc5 {[%clk 0:02:52]}  Nf6 {[%clk 0:02:34]} 13. Qd4 {[%clk 0:02:44]}  Bf5 {[%clk 0:02:29]} 14. Rg1 {[%clk 0:02:11]}  Re8 {[%clk 0:02:14]} 15. f4 {[%clk 0:02:07]}  Rc8 {[%clk 0:02:04]} 16. Bxh5 {[%clk 0:02:04]}  Qc7 {[%clk 0:02:01]} 17. b4 {[%clk 0:01:33]}  e5 {[%clk 0:01:43]} 18. fxe5 {[%clk 0:01:33]}  Qxe5 {[%clk 0:01:43]} 19. Be2 {[%clk 0:00:39]}  Qxe3 {[%clk 0:01:34]} 20. Qxf6+ {[%clk 0:00:39]}  Kxf6 {[%clk 0:01:32]} 21. Nxd5+ {[%clk 0:00:40]}  Kg7 {[%clk 0:01:30]} 22. Nxe3 {[%clk 0:00:40]}  Rxe3 {[%clk 0:01:30]} 23. Kf2 {[%clk 0:00:37]}  Rce8 {[%clk 0:01:20]} 24. Rge1 {[%clk 0:00:31]}  Rc3 {[%clk 0:01:06]} 25. Rac1 {[%clk 0:00:30]}  Ree3 {[%clk 0:00:55]} 26. Bd3 {[%clk 0:00:25]}  Rxe1 {[%clk 0:00:52]} 27. Rxe1 {[%clk 0:00:16]}  Bxd3 {[%clk 0:00:52]} 28. cxd3 {[%clk 0:00:16]}  Rxd3 {[%clk 0:00:53]} 29. Re7 {[%clk 0:00:17]}  Rd2+ {[%clk 0:00:14]} 30. Ke3 {[%clk 0:00:15]}  Rxa2 {[%clk 0:00:15]} 31. Rxb7 {[%clk 0:00:16]}  Rb2 {[%clk 0:00:12]} 32. c6 {[%clk 0:00:12]}  Rc2 {[%clk 0:00:12]} 33. b5 {[%clk 0:00:12]}  a6 {[%clk 0:00:08]} 34. bxa6 {[%clk 0:00:13]}  Rxc6 {[%clk 0:00:08]} 35. a7 {[%clk 0:00:13]}  Ra6 {[%clk 0:00:09]} 36. Kd4 {[%clk 0:00:13]}  Ra5 {[%clk 0:00:03]} 37. Kc4 {[%clk 0:00:12]}  Ra1 {[%clk 0:00:03]} 38. Kb5 {[%clk 0:00:10]}  Kf6 {[%clk 0:00:03]} 39. Rb6+ {[%clk 0:00:10]}  Kf5 {[%clk 0:00:03]} 40. Ra6 {[%clk 0:00:11]}  Rb1+ {[%clk 0:00:04]} 41. Kc4 {[%clk 0:00:11]}  Rc1+ {[%clk 0:00:04]} 42. Kd3 {[%clk 0:00:11]}  Rc8 {[%clk 0:00:04]} 43. a8=Q {[%clk 0:00:11]}  Rxa8 {[%clk 0:00:05]} 44. Rxa8 {[%clk 0:00:12]}  Kg4 {[%clk 0:00:06]} 45. Rh8 {[%clk 0:00:11]}  f5 {[%clk 0:00:05]} 46. Ke2 {[%clk 0:00:11]}  Kg3 {[%clk 0:00:06]} 47. Rh6 {[%clk 0:00:11]}  f4 {[%clk 0:00:05]} 48. Rxg6+ {[%clk 0:00:11]}  Kxh4 {[%clk 0:00:06]} 49. Kf3 {[%clk 0:00:11]} 1-0


[Site "https://www.chess.com"]

[Event "Titled Tuesday Blitz April 12 Late 2022"]
[White "Constantinou, Peter"]
[Black "Begmuratov, Khumoyun"]
[WhiteFideId "413038"]
[BlackFideId "14210207"]
[WhiteElo "2469"]
[BlackElo "2660"]
[Result "0-1"]
[Round "03"]
[TimeControl "180+1"]
[Date "2022.04.13"]
[WhiteClock "0:01:53"]
[BlackClock "0:02:07"]

1. b3 {[%clk 0:03:00]}  Nf6 {[%clk 0:02:59]} 2. Bb2 {[%clk 0:03:01]}  g6 {[%clk 0:02:59]} 3. d4 {[%clk 0:02:59]}  Bg7 {[%clk 0:02:59]} 4. Nf3 {[%clk 0:03:00]}  c5 {[%clk 0:02:59]} 5. dxc5 {[%clk 0:02:59]}  Qa5+ {[%clk 0:02:59]} 6. Nbd2 {[%clk 0:02:55]}  Qxc5 {[%clk 0:02:59]} 7. e3 {[%clk 0:02:56]}  O-O {[%clk 0:02:56]} 8. c4 {[%clk 0:02:56]}  Nc6 {[%clk 0:02:53]} 9. Be2 {[%clk 0:02:56]}  d5 {[%clk 0:02:44]} 10. O-O {[%clk 0:02:55]}  Rd8 {[%clk 0:02:40]} 11. cxd5 {[%clk 0:02:55]}  Qxd5 {[%clk 0:02:40]} 12. Nc4 {[%clk 0:02:52]}  Be6 {[%clk 0:02:35]} 13. Qxd5 {[%clk 0:02:52]}  Nxd5 {[%clk 0:02:33]} 14. Bxg7 {[%clk 0:02:49]}  Kxg7 {[%clk 0:02:34]} 15. Rac1 {[%clk 0:02:48]}  Rac8 {[%clk 0:02:31]} 16. Rfd1 {[%clk 0:02:41]}  Nf6 {[%clk 0:02:18]} 17. Kf1 {[%clk 0:02:38]}  Ne4 {[%clk 0:02:16]} 18. Nfd2 {[%clk 0:02:30]}  Nxd2+ {[%clk 0:02:10]} 19. Nxd2 {[%clk 0:02:29]}  Nb4 {[%clk 0:02:08]} 20. Rc7 {[%clk 0:01:53]}  Rxc7 {[%clk 0:02:07]} 0-1


[Site "https://www.chess.com"]

[Event "Titled Tuesday Blitz April 12 Late 2022"]
[White "Dahlgren, James Allen"]
[Black "Bibasa, Bob"]
[WhiteFideId "22256873"]
[BlackFideId "10000240"]
[WhiteElo "2096"]
[BlackElo "2056"]
[Result "1/2-1/2"]
[Round "03"]
[TimeControl "180+1"]
[Date "2022.04.13"]
[WhiteClock "0:00:33"]
[BlackClock "0:00:43"]

1. d3 {[%clk 0:02:58]}  d5 {[%clk 0:02:59]} 2. f4 {[%clk 0:02:59]}  Nf6 {[%clk 0:02:57]} 3. Nf3 {[%clk 0:02:55]}  c5 {[%clk 0:02:57]} 4. g3 {[%clk 0:02:52]}  g6 {[%clk 0:02:57]} 5. Bg2 {[%clk 0:02:51]}  Bg7 {[%clk 0:02:57]} 6. O-O {[%clk 0:02:49]}  O-O {[%clk 0:02:56]} 7. Nc3 {[%clk 0:02:47]}  d4 {[%clk 0:02:55]} 8. Ne4 {[%clk 0:02:46]}  Nbd7 {[%clk 0:02:51]} 9. c4 {[%clk 0:02:39]}  Qc7 {[%clk 0:02:47]} 10. h3 {[%clk 0:02:29]}  b6 {[%clk 0:02:45]} 11. e3 {[%clk 0:02:21]}  dxe3 {[%clk 0:02:43]} 12. Bxe3 {[%clk 0:02:22]}  Bb7 {[%clk 0:02:43]} 13. Qc2 {[%clk 0:02:17]}  Rfd8 {[%clk 0:02:34]} 14. Kh2 {[%clk 0:02:08]}  Nf8 {[%clk 0:02:19]} 15. Rad1 {[%clk 0:02:07]}  Ne6 {[%clk 0:02:16]} 16. b3 {[%clk 0:01:53]}  Rd7 {[%clk 0:02:11]} 17. Rf2 {[%clk 0:01:52]}  Rad8 {[%clk 0:02:10]} 18. Rfd2 {[%clk 0:01:52]}  Qb8 {[%clk 0:01:57]} 19. Ne5 {[%clk 0:01:40]}  Rc7 {[%clk 0:01:56]} 20. d4 {[%clk 0:01:21]}  cxd4 {[%clk 0:01:49]} 21. Bxd4 {[%clk 0:01:22]}  Nxd4 {[%clk 0:01:46]} 22. Rxd4 {[%clk 0:01:21]}  Rxd4 {[%clk 0:01:47]} 23. Rxd4 {[%clk 0:01:20]}  Nxe4 {[%clk 0:01:47]} 24. Bxe4 {[%clk 0:01:18]}  Bxe5 {[%clk 0:01:46]} 25. fxe5 {[%clk 0:01:15]}  Qa8 {[%clk 0:01:39]} 26. Bxb7 {[%clk 0:01:12]}  Qxb7 {[%clk 0:01:39]} 27. Qd2 {[%clk 0:01:09]}  Kg7 {[%clk 0:01:36]} 28. Qf4 {[%clk 0:01:04]}  Qc6 {[%clk 0:01:32]} 29. h4 {[%clk 0:01:01]}  Rd7 {[%clk 0:01:32]} 30. h5 {[%clk 0:00:58]}  Rxd4 {[%clk 0:01:14]} 31. h6+ {[%clk 0:00:57]}  Kf8 {[%clk 0:01:07]} 32. Qxd4 {[%clk 0:00:58]}  Ke8 {[%clk 0:01:07]} 33. e6 {[%clk 0:00:53]}  Qxe6 {[%clk 0:01:06]} 34. Qh8+ {[%clk 0:00:53]}  Kd7 {[%clk 0:01:06]} 35. Qxh7 {[%clk 0:00:53]}  Qe2+ {[%clk 0:01:06]} 36. Kh3 {[%clk 0:00:52]}  Qh5+ {[%clk 0:01:06]} 37. Kg2 {[%clk 0:00:51]}  Ke6 {[%clk 0:01:06]} 38. Qg7 {[%clk 0:00:49]}  Qe2+ {[%clk 0:01:05]} 39. Kh3 {[%clk 0:00:49]}  Qf1+ {[%clk 0:00:50]} 40. Kh2 {[%clk 0:00:48]}  Qf2+ {[%clk 0:00:49]} 41. Kh3 {[%clk 0:00:47]}  Qg1 {[%clk 0:00:49]} 42. h7 {[%clk 0:00:40]}  Qh1+ {[%clk 0:00:49]} 43. Kg4 {[%clk 0:00:40]}  f5+ {[%clk 0:00:49]} 44. Kg5 {[%clk 0:00:36]}  Qh5+ {[%clk 0:00:46]} 45. Kf4 {[%clk 0:00:35]}  Qg4+ {[%clk 0:00:47]} 46. Ke3 {[%clk 0:00:34]}  Qxg3+ {[%clk 0:00:47]} 47. Kd2 {[%clk 0:00:34]}  Qf2+ {[%clk 0:00:46]} 48. Kc3 {[%clk 0:00:32]}  Qe3+ {[%clk 0:00:43]} 49. Kb2 {[%clk 0:00:31]}  Qd2+ {[%clk 0:00:43]} 50. Ka3 {[%clk 0:00:31]}  Qa5+ {[%clk 0:00:42]} 51. Kb2 {[%clk 0:00:32]}  Qd2+ {[%clk 0:00:42]} 52. Ka3 {[%clk 0:00:32]}  Qa5+ {[%clk 0:00:43]} 53. Kb2 {[%clk 0:00:33]}  Qd2+ {[%clk 0:00:43]} 1/2-1/2


[Site "https://www.chess.com"]

[Event "Titled Tuesday Blitz April 12 Late 2022"]
[White "Fajdetic, Hrvoje"]
[Black "Prohorov, Olexandr"]
[WhiteFideId "14501945"]
[BlackFideId "14105578"]
[WhiteElo "2172"]
[BlackElo "1993"]
[Result "0-1"]
[Round "03"]
[TimeControl "180+1"]
[Date "2022.04.13"]
[WhiteClock "0:00:02"]
[BlackClock "0:01:16"]

1. d4 {[%clk 0:02:59]}  g6 {[%clk 0:02:59]} 2. Nc3 {[%clk 0:02:55]}  Bg7 {[%clk 0:03:00]} 3. e4 {[%clk 0:02:56]}  d6 {[%clk 0:02:59]} 4. Be3 {[%clk 0:02:55]}  c6 {[%clk 0:02:57]} 5. Qd2 {[%clk 0:02:55]}  Nd7 {[%clk 0:02:46]} 6. f4 {[%clk 0:02:52]}  Ngf6 {[%clk 0:02:44]} 7. h3 {[%clk 0:02:51]}  b5 {[%clk 0:02:43]} 8. a3 {[%clk 0:02:49]}  Nb6 {[%clk 0:02:39]} 9. g4 {[%clk 0:02:47]}  Qc7 {[%clk 0:02:36]} 10. e5 {[%clk 0:02:36]}  Nfd5 {[%clk 0:02:34]} 11. Nxd5 {[%clk 0:02:31]}  Nxd5 {[%clk 0:02:34]} 12. Bg2 {[%clk 0:02:25]}  a5 {[%clk 0:02:18]} 13. Ne2 {[%clk 0:02:17]}  h5 {[%clk 0:02:17]} 14. exd6 {[%clk 0:01:29]}  Qxd6 {[%clk 0:02:12]} 15. O-O-O {[%clk 0:00:45]}  b4 {[%clk 0:02:07]} 16. a4 {[%clk 0:00:42]}  hxg4 {[%clk 0:01:55]} 17. hxg4 {[%clk 0:00:31]}  Rxh1 {[%clk 0:01:56]} 18. Rxh1 {[%clk 0:00:30]}  Bxg4 {[%clk 0:01:56]} 19. Rh7 {[%clk 0:00:30]}  Kf8 {[%clk 0:01:39]} 20. f5 {[%clk 0:00:29]}  Nxe3 {[%clk 0:01:36]} 21. Qxe3 {[%clk 0:00:21]}  Bxe2 {[%clk 0:01:19]} 22. Qxe2 {[%clk 0:00:12]}  Qxd4 {[%clk 0:01:19]} 23. Bxc6 {[%clk 0:00:02]}  Qxb2+ {[%clk 0:01:16]} 0-1


[Site "https://www.chess.com"]

[Event "Titled Tuesday Blitz April 12 Late 2022"]
[White "Foisor, Sabina-Francesca"]
[Black "Soysal, Serkan"]
[WhiteFideId "1212915"]
[BlackFideId "6349250"]
[WhiteElo "2243"]
[BlackElo "2440"]
[Result "1/2-1/2"]
[Round "03"]
[TimeControl "180+1"]
[Date "2022.04.13"]
[WhiteClock "0:00:05"]
[BlackClock "0:00:16"]

1. d4 {[%clk 0:03:00]}  Nf6 {[%clk 0:02:59]} 2. c4 {[%clk 0:03:01]}  g6 {[%clk 0:02:59]} 3. Nc3 {[%clk 0:03:00]}  d5 {[%clk 0:02:59]} 4. Nf3 {[%clk 0:02:56]}  Bg7 {[%clk 0:02:59]} 5. e3 {[%clk 0:02:56]}  O-O {[%clk 0:02:58]} 6. b4 {[%clk 0:02:56]}  a5 {[%clk 0:02:48]} 7. b5 {[%clk 0:02:56]}  c5 {[%clk 0:02:46]} 8. bxc6 {[%clk 0:02:51]}  Nxc6 {[%clk 0:02:41]} 9. Ba3 {[%clk 0:02:40]}  Nb4 {[%clk 0:02:30]} 10. Be2 {[%clk 0:02:16]}  Bf5 {[%clk 0:02:23]} 11. Rc1 {[%clk 0:02:10]}  Ne4 {[%clk 0:02:17]} 12. O-O {[%clk 0:02:01]}  Nxc3 {[%clk 0:02:14]} 13. Rxc3 {[%clk 0:02:02]}  Nxa2 {[%clk 0:02:15]} 14. Rb3 {[%clk 0:02:01]}  dxc4 {[%clk 0:02:00]} 15. Bxc4 {[%clk 0:01:56]}  Rc8 {[%clk 0:01:45]} 16. Qe2 {[%clk 0:01:30]}  Qc7 {[%clk 0:01:26]} 17. Nd2 {[%clk 0:01:05]}  a4 {[%clk 0:00:59]} 18. Rb2 {[%clk 0:00:49]}  Nc3 {[%clk 0:00:58]} 19. Qf3 {[%clk 0:00:47]}  b5 {[%clk 0:00:48]} 20. e4 {[%clk 0:00:26]}  Bxd4 {[%clk 0:00:32]} 21. Bxf7+ {[%clk 0:00:20]}  Rxf7 {[%clk 0:00:32]} 22. exf5 {[%clk 0:00:20]}  Rxf5 {[%clk 0:00:32]} 23. Qd3 {[%clk 0:00:19]}  Qb6 {[%clk 0:00:28]} 24. Nf3 {[%clk 0:00:18]}  e5 {[%clk 0:00:27]} 25. Qd2 {[%clk 0:00:15]}  Ne4 {[%clk 0:00:23]} 26. Qe2 {[%clk 0:00:14]}  Bxb2 {[%clk 0:00:22]} 27. Bxb2 {[%clk 0:00:13]}  Nd6 {[%clk 0:00:18]} 28. Nxe5 {[%clk 0:00:13]}  Re8 {[%clk 0:00:18]} 29. Qd3 {[%clk 0:00:09]}  Nc4 {[%clk 0:00:17]} 30. Nxc4 {[%clk 0:00:08]}  bxc4 {[%clk 0:00:17]} 31. Qxc4+ {[%clk 0:00:08]}  Qe6 {[%clk 0:00:17]} 32. Qc3 {[%clk 0:00:09]}  Re5 {[%clk 0:00:13]} 33. Qxe5 {[%clk 0:00:08]}  Qxe5 {[%clk 0:00:14]} 34. Bxe5 {[%clk 0:00:09]}  Rxe5 {[%clk 0:00:15]} 35. g3 {[%clk 0:00:09]}  a3 {[%clk 0:00:15]} 36. Ra1 {[%clk 0:00:10]}  Ra5 {[%clk 0:00:15]} 37. Ra2 {[%clk 0:00:09]}  Kf7 {[%clk 0:00:15]} 38. Kf1 {[%clk 0:00:10]}  Ke6 {[%clk 0:00:16]} 39. Ke2 {[%clk 0:00:10]}  Kd5 {[%clk 0:00:17]} 40. Kd3 {[%clk 0:00:11]}  g5 {[%clk 0:00:15]} 41. Kc3 {[%clk 0:00:11]}  Ke4 {[%clk 0:00:15]} 42. f4 {[%clk 0:00:09]}  gxf4 {[%clk 0:00:16]} 43. gxf4 {[%clk 0:00:10]}  Kxf4 {[%clk 0:00:16]} 44. Kb3 {[%clk 0:00:08]}  Kg4 {[%clk 0:00:17]} 45. Kc3 {[%clk 0:00:05]}  Kh3 {[%clk 0:00:17]} 46. Kd3 {[%clk 0:00:06]}  h5 {[%clk 0:00:16]} 47. Ke3 {[%clk 0:00:06]}  h4 {[%clk 0:00:15]} 48. Kf3 {[%clk 0:00:06]}  Rf5+ {[%clk 0:00:15]} 49. Ke4 {[%clk 0:00:05]}  Ra5 {[%clk 0:00:16]} 50. Kf3 {[%clk 0:00:04]}  Ra8 {[%clk 0:00:17]} 51. Kf4 {[%clk 0:00:04]}  Ra5 {[%clk 0:00:16]} 52. Kf3 {[%clk 0:00:05]} 1/2-1/2


[Site "https://www.chess.com"]

[Event "Titled Tuesday Blitz April 12 Late 2022"]
[White "Friedel, Tom"]
[Black "Winkels, Marcel"]
[WhiteFideId "2002108"]
[BlackFideId "1003887"]
[WhiteElo "2399"]
[BlackElo "1900"]
[Result "1-0"]
[Round "03"]
[TimeControl "180+1"]
[Date "2022.04.13"]
[WhiteClock "0:00:35"]
[BlackClock "0:00:02"]

1. e4 {[%clk 0:02:45]}  b6 {[%clk 0:02:59]} 2. d4 {[%clk 0:02:44]}  e6 {[%clk 0:02:58]} 3. Bd3 {[%clk 0:02:42]}  Bb7 {[%clk 0:02:58]} 4. Nf3 {[%clk 0:02:43]}  d6 {[%clk 0:02:58]} 5. Nbd2 {[%clk 0:02:43]}  Nd7 {[%clk 0:02:58]} 6. O-O {[%clk 0:02:43]}  g6 {[%clk 0:02:56]} 7. Qe2 {[%clk 0:02:44]}  Bg7 {[%clk 0:02:56]} 8. Re1 {[%clk 0:02:42]}  Ne7 {[%clk 0:02:56]} 9. a4 {[%clk 0:02:36]}  a6 {[%clk 0:02:54]} 10. c3 {[%clk 0:02:35]}  O-O {[%clk 0:02:50]} 11. h4 {[%clk 0:02:33]}  h6 {[%clk 0:02:49]} 12. Nf1 {[%clk 0:02:31]}  e5 {[%clk 0:02:36]} 13. Ng3 {[%clk 0:02:25]}  f5 {[%clk 0:02:32]} 14. exf5 {[%clk 0:02:16]}  gxf5 {[%clk 0:02:30]} 15. dxe5 {[%clk 0:01:58]}  dxe5 {[%clk 0:02:28]} 16. Nh5 {[%clk 0:01:48]}  e4 {[%clk 0:02:15]} 17. Bc4+ {[%clk 0:01:48]}  Kh7 {[%clk 0:01:55]} 18. Nd4 {[%clk 0:01:47]}  Ne5 {[%clk 0:01:48]} 19. Ne6 {[%clk 0:01:41]}  Qd7 {[%clk 0:01:36]} 20. Nhxg7 {[%clk 0:01:36]}  Rg8 {[%clk 0:01:31]} 21. Qh5 {[%clk 0:01:08]}  Ng4 {[%clk 0:01:16]} 22. Nxf5 {[%clk 0:00:46]}  Nxf5 {[%clk 0:01:01]} 23. Qxf5+ {[%clk 0:00:45]}  Kh8 {[%clk 0:01:01]} 24. Bf4 {[%clk 0:00:36]}  e3 {[%clk 0:00:02]} 25. Be5+ {[%clk 0:00:35]} 1-0


[Site "https://www.chess.com"]

[Event "Titled Tuesday Blitz April 12 Late 2022"]
[White "Grave, Jacob Templen"]
[Black "Hartikainen, Jarmo"]
[WhiteFideId "1542656"]
[BlackFideId "503134"]
[WhiteElo "1737"]
[BlackElo "2125"]
[Result "1-0"]
[Round "03"]
[TimeControl "180+1"]
[Date "2022.04.13"]
[WhiteClock "0:00:06"]
[BlackClock "0:00:10"]

1. b3 {[%clk 0:02:59]}  g6 {[%clk 0:02:59]} 2. Bb2 {[%clk 0:02:59]}  Nf6 {[%clk 0:02:59]} 3. Nf3 {[%clk 0:02:56]}  Bg7 {[%clk 0:02:58]} 4. e3 {[%clk 0:02:56]}  d6 {[%clk 0:02:59]} 5. c4 {[%clk 0:02:54]}  e5 {[%clk 0:02:56]} 6. d3 {[%clk 0:02:48]}  O-O {[%clk 0:02:53]} 7. Be2 {[%clk 0:02:46]}  b6 {[%clk 0:02:48]} 8. O-O {[%clk 0:02:43]}  Bb7 {[%clk 0:02:49]} 9. Nbd2 {[%clk 0:02:41]}  Nbd7 {[%clk 0:02:48]} 10. Rc1 {[%clk 0:02:37]}  Re8 {[%clk 0:02:36]} 11. d4 {[%clk 0:02:22]}  e4 {[%clk 0:02:14]} 12. Ne1 {[%clk 0:02:09]}  c6 {[%clk 0:02:13]} 13. b4 {[%clk 0:01:53]}  d5 {[%clk 0:02:13]} 14. c5 {[%clk 0:01:51]}  b5 {[%clk 0:02:08]} 15. a4 {[%clk 0:01:46]}  a6 {[%clk 0:02:06]} 16. Qb3 {[%clk 0:01:33]}  Qe7 {[%clk 0:01:59]} 17. Nc2 {[%clk 0:01:29]}  Bh6 {[%clk 0:01:56]} 18. Ra1 {[%clk 0:01:17]}  Nf8 {[%clk 0:01:55]} 19. Ra3 {[%clk 0:01:10]}  Bg5 {[%clk 0:01:21]} 20. axb5 {[%clk 0:00:49]}  axb5 {[%clk 0:01:19]} 21. Rfa1 {[%clk 0:00:47]}  Rxa3 {[%clk 0:01:12]} 22. Rxa3 {[%clk 0:00:46]}  h5 {[%clk 0:01:12]} 23. Ra7 {[%clk 0:00:37]}  Ra8 {[%clk 0:01:03]} 24. Qa2 {[%clk 0:00:36]}  Rxa7 {[%clk 0:01:03]} 25. Qxa7 {[%clk 0:00:36]}  Kg7 {[%clk 0:01:02]} 26. Bxb5 {[%clk 0:00:33]}  Qd7 {[%clk 0:00:41]} 27. Be2 {[%clk 0:00:27]}  Ng4 {[%clk 0:00:35]} 28. h3 {[%clk 0:00:15]}  Nh6 {[%clk 0:00:35]} 29. b5 {[%clk 0:00:12]}  Ne6 {[%clk 0:00:31]} 30. bxc6 {[%clk 0:00:09]}  Bxc6 {[%clk 0:00:31]} 31. Qxd7 {[%clk 0:00:08]}  Bxd7 {[%clk 0:00:31]} 32. Nb4 {[%clk 0:00:09]}  Nd8 {[%clk 0:00:31]} 33. Nb3 {[%clk 0:00:09]}  Nf5 {[%clk 0:00:29]} 34. Na5 {[%clk 0:00:07]}  Ne7 {[%clk 0:00:28]} 35. Bc1 {[%clk 0:00:03]}  Bf6 {[%clk 0:00:28]} 36. f4 {[%clk 0:00:03]}  Kf8 {[%clk 0:00:27]} 37. Kf2 {[%clk 0:00:04]}  Ke8 {[%clk 0:00:27]} 38. Kg3 {[%clk 0:00:04]}  Ndc6 {[%clk 0:00:25]} 39. Nbxc6 {[%clk 0:00:02]}  Nxc6 {[%clk 0:00:23]} 40. Nxc6 {[%clk 0:00:03]}  Bxc6 {[%clk 0:00:23]} 41. Kf2 {[%clk 0:00:04]}  Kd7 {[%clk 0:00:23]} 42. g4 {[%clk 0:00:05]}  Bh4+ {[%clk 0:00:20]} 43. Kf1 {[%clk 0:00:04]}  hxg4 {[%clk 0:00:19]} 44. hxg4 {[%clk 0:00:04]}  Kc7 {[%clk 0:00:20]} 45. Bd2 {[%clk 0:00:02]}  Kb7 {[%clk 0:00:16]} 46. Ba5 {[%clk 0:00:03]}  Bd7 {[%clk 0:00:16]} 47. Bb6 {[%clk 0:00:04]}  Bc6 {[%clk 0:00:15]} 48. Kg2 {[%clk 0:00:04]}  Bd7 {[%clk 0:00:15]} 49. Kh3 {[%clk 0:00:05]}  Be7 {[%clk 0:00:15]} 50. Kg3 {[%clk 0:00:05]}  Bc6 {[%clk 0:00:15]} 51. f5 {[%clk 0:00:04]}  g5 {[%clk 0:00:14]} 52. Bd1 {[%clk 0:00:01]}  Bf6 {[%clk 0:00:14]} 53. Be2 {[%clk 0:00:02]}  Be7 {[%clk 0:00:14]} 54. Bf1 {[%clk 0:00:03]}  Bf6 {[%clk 0:00:15]} 55. Bg2 {[%clk 0:00:04]}  Be7 {[%clk 0:00:14]} 56. Ba5 {[%clk 0:00:05]}  Bf6 {[%clk 0:00:14]} 57. Be1 {[%clk 0:00:06]}  Be7 {[%clk 0:00:13]} 58. Kf2 {[%clk 0:00:06]}  Ka6 {[%clk 0:00:13]} 59. Ke2 {[%clk 0:00:07]}  Kb5 {[%clk 0:00:13]} 60. Kd2 {[%clk 0:00:08]}  Kc4 {[%clk 0:00:12]} 61. Bf1+ {[%clk 0:00:09]}  Kb3 {[%clk 0:00:12]} 62. Ba6 {[%clk 0:00:07]}  Ka4 {[%clk 0:00:11]} 63. Kc3 {[%clk 0:00:06]}  Bf6 {[%clk 0:00:10]} 64. Be2 {[%clk 0:00:07]}  Be7 {[%clk 0:00:10]} 65. Kb2 {[%clk 0:00:07]}  f6 {[%clk 0:00:10]} 66. Bc3 {[%clk 0:00:08]}  Bd8 {[%clk 0:00:10]} 67. Ka2 {[%clk 0:00:06]}  Bb5 {[%clk 0:00:10]} 68. Bd1# {[%clk 0:00:06]} 1-0


[Site "https://www.chess.com"]

[Event "Titled Tuesday Blitz April 12 Late 2022"]
[White "Hoffmann, Asa"]
[Black "Wang, Jalen"]
[WhiteFideId "2001470"]
[BlackFideId "2078058"]
[WhiteElo "2117"]
[BlackElo "2084"]
[Result "0-1"]
[Round "03"]
[TimeControl "180+1"]
[Date "2022.04.13"]
[WhiteClock "0:00:55"]
[BlackClock "0:01:02"]

1. d4 {[%clk 0:02:59]}  f5 {[%clk 0:02:57]} 2. Nc3 {[%clk 0:02:57]}  d5 {[%clk 0:02:56]} 3. f3 {[%clk 0:02:56]}  Nf6 {[%clk 0:02:56]} 4. Bg5 {[%clk 0:02:54]}  h6 {[%clk 0:02:55]} 5. Bxf6 {[%clk 0:02:50]}  exf6 {[%clk 0:02:56]} 6. e4 {[%clk 0:02:50]}  Bb4 {[%clk 0:02:50]} 7. exf5 {[%clk 0:02:36]}  Bxf5 {[%clk 0:02:47]} 8. Bd3 {[%clk 0:02:36]}  Bxd3 {[%clk 0:02:43]} 9. Qxd3 {[%clk 0:02:36]}  O-O {[%clk 0:02:42]} 10. Ne2 {[%clk 0:02:35]}  c6 {[%clk 0:02:41]} 11. O-O-O {[%clk 0:02:33]}  Qc7 {[%clk 0:02:38]} 12. h4 {[%clk 0:02:29]}  Nd7 {[%clk 0:02:37]} 13. g4 {[%clk 0:02:29]}  Bd6 {[%clk 0:02:32]} 14. Kb1 {[%clk 0:02:26]}  b5 {[%clk 0:02:25]} 15. g5 {[%clk 0:02:25]}  f5 {[%clk 0:02:05]} 16. gxh6 {[%clk 0:02:24]}  gxh6 {[%clk 0:02:06]} 17. Rhg1+ {[%clk 0:02:20]}  Kh7 {[%clk 0:02:02]} 18. h5 {[%clk 0:02:20]}  Rf6 {[%clk 0:02:02]} 19. Rg6 {[%clk 0:02:17]}  Raf8 {[%clk 0:02:02]} 20. Rdg1 {[%clk 0:02:17]}  Nb6 {[%clk 0:02:02]} 21. b3 {[%clk 0:02:05]}  a5 {[%clk 0:02:01]} 22. Nd1 {[%clk 0:02:03]}  a4 {[%clk 0:02:00]} 23. Ne3 {[%clk 0:02:03]}  Qd7 {[%clk 0:01:51]} 24. Ng3 {[%clk 0:01:54]}  Bxg3 {[%clk 0:01:47]} 25. R1xg3 {[%clk 0:01:53]}  Qf7 {[%clk 0:01:32]} 26. Rg7+ {[%clk 0:01:50]}  Qxg7 {[%clk 0:01:31]} 27. Rxg7+ {[%clk 0:01:50]}  Kxg7 {[%clk 0:01:32]} 28. Ng2 {[%clk 0:01:50]}  axb3 {[%clk 0:01:30]} 29. axb3 {[%clk 0:01:49]}  Nc8 {[%clk 0:01:29]} 30. Nf4 {[%clk 0:01:49]}  Nd6 {[%clk 0:01:29]} 31. Qf1 {[%clk 0:01:42]}  Kh7 {[%clk 0:01:28]} 32. Ng6 {[%clk 0:01:36]}  Re8 {[%clk 0:01:27]} 33. Qg2 {[%clk 0:01:35]}  b4 {[%clk 0:01:23]} 34. Qd2 {[%clk 0:01:32]}  Rb8 {[%clk 0:01:16]} 35. Qf4 {[%clk 0:01:23]}  Rb7 {[%clk 0:01:15]} 36. Qe5 {[%clk 0:01:22]}  Rbf7 {[%clk 0:01:12]} 37. Ne7 {[%clk 0:01:16]}  Nb5 {[%clk 0:01:09]} 38. Nxc6 {[%clk 0:01:13]}  Rxc6 {[%clk 0:01:07]} 39. Qe8 {[%clk 0:01:08]}  Nc3+ {[%clk 0:01:06]} 40. Kb2 {[%clk 0:01:08]}  Rcc7 {[%clk 0:01:02]} 41. f4 {[%clk 0:01:00]}  Ra7 {[%clk 0:01:02]} 42. Qe6 {[%clk 0:00:56]}  Ra2+ {[%clk 0:01:00]} 43. Kc1 {[%clk 0:00:56]}  Ra1+ {[%clk 0:01:01]} 44. Kd2 {[%clk 0:00:56]}  Rd1+ {[%clk 0:01:02]} 45. Ke3 {[%clk 0:00:55]}  Re1+ {[%clk 0:01:02]} 0-1


[Site "https://www.chess.com"]